bitfinex/quotes_ETHUSD_20250721
["timestamp","ask_amount","ask_price","bid_price","bid_amount"]
[1753133092350,0.02,3756.9,3756.8,8.97858316]
[1753133092551,0.02,3756.9,3756.8,13.04558316]
[1753133093256,0.02,3756.9,3756.8,15.17860516]
[1753133093438,0.02,3756.9,3756.8,13.04558316]
[1753133093664,0.02,3756.9,3756.8,8.97858316]
[1753133094037,0.02,3756.9,3756.8,13.04558316]
[1753133094377,0.02,3756.9,3756.8,15.38148316]
[1753133094536,0.02,3756.9,3756.8,13.04558316]
[1753133097075,0.02,3756.9,3756.8,15.30710616]
[1753133097275,0.02,3756.9,3756.8,13.04558316]
[1753133099165,0.02,3756.9,3756.8,8.97858316]
[1753133099372,0.02,3756.9,3756.8,13.04458316]
[1753133100684,0.02,3756.9,3756.8,8.97858316]
[1753133100869,0.02,3756.9,3756.8,11.66223986]
[1753133102765,0.02,3756.9,3756.8,17.13086286]
[1753133102953,0.02,3756.9,3756.8,30.02159086]
[1753133103147,0.002,3757.0,3756.9,6.21176901]
[1753133103350,0.002,3757.0,3756.9,23.4985557]
[1753133103549,0.002,3757.0,3756.9,26.09947194]
[1753133103770,0.002,3757.0,3756.9,19.59947194]
[1753133103972,0.002,3757.0,3756.9,22.82147194]
[1753133104387,0.002,3757.0,3756.9,20.52147194]
[1753133104807,0.002,3757.0,3756.9,10.03380294]
[1753133105003,0.002,3757.0,3756.9,14.09980294]
[1753133107131,0.002,3757.0,3756.9,9.59210294]
[1753133107306,0.002,3757.0,3756.9,13.10810294]
[1753133107504,0.002,3757.0,3756.9,9.04210294]
[1753133107711,0.002,3757.0,3756.9,9.72776901]
[1753133107929,0.002,3757.0,3756.9,10.27776901]
[1753133109493,1.2852,3757.0,3756.6,6.385]
[1753133109693,0.4626,3756.9,3756.7,4.065]
[1753133109904,0.4626,3756.8,3756.7,9.72691071]
[1753133110324,0.4626,3756.8,3756.7,7.065]
[1753133110528,0.1328,3756.7,3756.6,6.385]
[1753133110701,0.5954,3756.7,3756.6,10.451]
[1753133111025,0.5954,3756.7,3756.6,6.385]
[1753133111227,0.5954,3756.7,3756.6,10.451]
[1753133113997,1.416,3756.7,3756.6,10.451]
[1753133117750,0.9534,3756.7,3756.6,13.11298157]
[1753133117908,0.1328,3756.7,3756.6,13.11298157]
[1753133118113,0.1328,3756.7,3756.6,13.57758157]
[1753133118535,0.1328,3756.7,3756.6,13.11298157]
[1753133119509,0.5709,3756.7,3756.6,13.11298157]
[1753133119935,0.1328,3756.7,3756.6,13.11298157]
[1753133121068,0.1328,3756.7,3756.6,10.451]
[1753133122571,0.1328,3756.7,3756.6,13.11298157]
[1753133124159,0.1328,3756.7,3756.6,6.72798157]
[1753133131278,0.002,3756.9,3756.8,6.21183986]
[1753133131592,0.002,3756.9,3756.8,10.30345825]
[1753133131796,0.002,3756.9,3756.8,10.27683986]
[1753133131977,0.002,3756.9,3756.8,10.74143986]
[1753133132296,1e-08,3756.9,3756.8,10.74143986]
[1753133132499,1e-08,3756.9,3756.8,12.87248296]
[1753133132664,1e-08,3756.9,3756.8,13.68968296]
[1753133139999,1e-08,3756.9,3756.8,16.72704096]
[1753133140289,0.002,3757.2,3757.1,6.49122731]
[1753133140631,0.002,3757.7,3757.6,2.66127315]
[1753133140795,0.002,3757.7,3757.6,9.75188588]
[1753133140981,0.002,3757.7,3757.6,9.72527315]
[1753133141180,0.002,3757.7,3757.6,10.18987315]
[1753133141516,0.002,3757.7,3757.6,11.01947315]
[1753133141710,0.002,3757.7,3757.6,12.38755584]
[1753133142984,0.002,3757.7,3757.6,11.09335584]
[1753133144533,0.002,3757.7,3757.6,2.66127315]
[1753133144830,0.002,3757.7,3757.6,6.72527315]
[1753133144831,0.4401,3757.7,3757.6,6.72527315]
[1753133147218,0.4401,3757.7,3757.6,4.064]
[1753133152893,0.002,3757.7,3757.6,4.064]
[1753133153194,0.1348,3757.7,3757.6,10.18267315]
[1753133153542,0.1348,3757.7,3757.6,11.09205719]
[1753133155047,0.1348,3757.7,3757.6,11.54945719]
[1753133155248,0.002,3757.7,3757.6,11.54945719]
[1753133156624,0.002,3757.7,3757.6,11.09205719]
[1753133160551,0.002,3757.7,3757.6,9.72527315]
[1753133160705,0.4759,3757.7,3757.6,7.062]
[1753133161060,0.4759,3757.7,3757.6,9.72327315]
[1753133161431,0.002,3757.7,3757.6,9.72327315]
[1753133161642,0.002,3757.7,3757.6,10.18067315]
[1753133161841,0.002,3757.7,3757.6,11.46487586]
[1753133162155,0.002,3757.7,3757.6,11.00747586]
[1753133165257,0.002,3757.7,3757.6,11.55747586]
[1753133165442,0.002,3757.7,3757.6,12.79067586]
[1753133165643,0.002,3757.7,3757.6,12.92347586]
[1753133177565,0.002,3757.7,3757.6,7.62827586]
[1753133177766,0.4582,3757.7,3757.6,11.68827586]
[1753133178380,0.002,3757.7,3757.6,11.68827586]
[1753133179649,0.002,3758.0,3757.9,4.02206069]
[1753133179846,0.002,3758.0,3757.9,11.10867129]
[1753133180077,0.002,3758.0,3757.9,35.57732469]
[1753133180078,1e-08,3758.0,3757.9,35.57732469]
[1753133180274,1e-08,3758.0,3757.9,28.50836569]
[1753133180470,1e-08,3758.0,3757.9,26.12041469]
[1753133180681,1e-08,3758.0,3757.9,14.28769462]
[1753133180878,1e-08,3758.0,3757.9,10.22769462]
[1753133181186,1e-08,3758.0,3757.9,13.85339462]
[1753133181364,1e-08,3758.0,3757.9,14.29869462]
[1753133182064,1e-08,3758.0,3757.9,26.23637162]
[1753133182259,1e-08,3758.0,3757.9,21.61029062]
[1753133182456,1e-08,3758.0,3757.9,17.64297862]
[1753133182987,1e-08,3758.0,3757.9,17.23662462]
[1753133183286,1e-08,3758.0,3757.9,16.46369462]
[1753133185200,1e-08,3758.0,3757.9,12.39269462]
[1753133185503,1e-08,3758.0,3757.9,12.72586069]
[1753133185711,1e-08,3758.0,3757.9,16.79286069]
[1753133186152,1e-08,3758.0,3757.9,24.24637769]
[1753133186355,1e-08,3758.0,3757.9,25.05737769]
[1753133186991,1e-08,3758.0,3757.9,20.35276069]
[1753133187357,1e-08,3758.0,3757.9,22.98029462]
[1753133188295,1e-08,3758.0,3757.9,35.13607462]
[1753133188461,1e-08,3758.0,3757.9,32.56791462]
[1753133188664,1e-08,3758.0,3757.9,30.75799262]
[1753133188997,1e-08,3758.0,3757.9,27.66939162]
[1753133189874,1e-08,3758.0,3757.9,27.32238362]
[1753133190186,1e-08,3758.0,3757.9,18.86739462]
[1753133190396,0.45620001,3758.0,3757.9,18.86739462]
[1753133190614,0.45620001,3758.0,3757.9,19.41739462]
[1753133190754,1e-08,3758.0,3757.9,19.41739462]
[1753133191204,1.21630001,3758.0,3757.9,6.382]
[1753133191366,1.34910001,3758.0,3757.9,10.452]
[1753133191564,1.34910001,3758.0,3757.9,13.11306069]
[1753133191906,1.34910001,3758.0,3757.9,9.73206069]
[1753133192403,1.34910001,3758.0,3757.9,7.071]
[1753133196796,0.58900001,3758.0,3757.9,9.73206069]
[1753133197108,1e-08,3758.0,3757.9,11.5214003]
[1753133197896,1e-08,3758.0,3757.9,12.0995003]
[1753133198101,1e-08,3758.0,3757.9,11.6542003]
[1753133203802,1e-08,3758.0,3757.9,11.6552003]
[1753133208289,1e-08,3758.0,3757.9,12.8765003]
[1753133211805,1e-08,3758.0,3757.9,12.4302003]
[1753133212473,1e-08,3758.0,3757.9,11.6552003]
[1753133226646,1e-08,3758.0,3757.9,16.3452003]
[1753133226802,1e-08,3758.0,3757.9,24.70933753]
[1753133227009,1e-08,3758.0,3757.9,36.22971253]
[1753133227230,1e-08,3758.0,3757.9,36.53738439]
[1753133227710,1e-08,3758.5,3758.4,6.99280668]
[1753133227922,1e-08,3758.5,3758.4,19.15390346]
[1753133228220,1e-08,3758.5,3758.4,27.48894846]
[1753133230840,1e-08,3758.5,3758.4,4.30886623]
[1753133231016,0.43010001,3758.5,3758.4,2.68731374]
[1753133231216,0.43010001,3758.5,3758.4,6.71970668]
[1753133231443,0.43010001,3758.5,3758.4,9.71970668]
[1753133232237,1.19510001,3758.5,3758.4,9.71970668]
[1753133232428,1.19510001,3758.5,3758.4,5.66070668]
[1753133232944,1.19510001,3758.5,3758.4,9.71970668]
[1753133239156,1e-08,3758.5,3758.4,10.26970668]
[1753133239362,1e-08,3758.5,3758.4,11.82883511]
[1753133242477,1e-08,3758.5,3758.4,27.86780811]
[1753133242771,1e-08,3758.5,3758.4,28.69510811]
[1753133244643,1e-08,3758.5,3758.4,26.26057111]
[1753133245024,1e-08,3758.5,3758.4,16.43568611]
[1753133245142,1e-08,3758.5,3758.4,15.88859011]
[1753133247943,1e-08,3758.5,3758.4,15.88959011]
[1753133248867,1e-08,3758.5,3758.4,11.27983511]
[1753133249066,1e-08,3758.5,3758.4,14.15202011]
[1753133250054,1e-08,3758.5,3758.4,14.61122011]
[1753133251772,1e-08,3758.5,3758.4,14.33135611]
[1753133253017,1e-08,3758.5,3758.4,20.71135611]
[1753133253793,1e-08,3758.5,3758.4,21.51045611]
[1753133255577,1e-08,3758.8,3758.7,6.21049431]
[1753133255817,1e-08,3758.8,3758.7,19.28290718]
[1753133255983,1e-08,3758.9,3758.8,6.21042353]
[1753133256188,1e-08,3758.9,3758.8,18.81182646]
[1753133256698,1e-08,3758.9,3758.8,19.78983346]
[1753133256903,0.002,3759.3,3759.2,6.21014045]
[1753133256904,1e-08,3759.3,3759.2,6.21014045]
[1753133257103,1e-08,3759.3,3759.2,14.90935685]
[1753133257299,1e-08,3759.3,3759.2,14.88275545]
[1753133257524,1e-08,3759.3,3759.2,17.8098269]
[1753133259179,1e-08,3759.3,3759.2,12.7625909]
[1753133259380,1e-08,3759.3,3759.2,16.8205909]
[1753133259576,1e-08,3759.3,3759.2,15.8125909]
[1753133260116,1e-08,3759.3,3759.2,16.2717909]
[1753133261795,1e-08,3759.3,3759.2,14.1271119]
[1753133262004,1e-08,3759.3,3759.2,17.3697909]
[1753133263585,1e-08,3759.3,3759.2,16.9105909]
[1753133265700,1e-08,3759.3,3759.2,13.6679119]
[1753133266222,1.27970001,3759.3,3759.2,12.3178119]
[1753133266427,1.27970001,3759.3,3759.2,9.84994045]
[1753133266596,1.27970001,3759.3,3759.2,9.71714045]
[1753133267002,1.27970001,3759.3,3759.2,10.26714045]
[1753133268720,1.27970001,3759.3,3759.2,10.26714045]
[1753133270625,0.44500001,3759.3,3759.2,10.39994045]
[1753133272825,1e-08,3759.3,3759.2,10.39994045]
[1753133273031,1e-08,3759.3,3759.2,11.70595667]
[1753133275122,0.44500001,3759.3,3759.2,10.39994045]
[1753133275935,0.44500001,3759.3,3759.2,10.26614045]
[1753133277736,1.24720001,3759.3,3759.2,3.0]
[1753133277940,1.24720001,3759.3,3759.2,7.056]
[1753133278846,1.24720001,3759.3,3759.2,4.056]
[1753133280527,1.24720001,3759.3,3759.2,6.71614045]
[1753133281433,1.24720001,3759.3,3759.2,4.056]
[1753133282202,1.24720001,3759.3,3759.2,6.71614045]
[1753133287643,0.44500001,3759.3,3759.2,6.71614045]
[1753133287845,1e-08,3759.3,3759.2,6.71614045]
[1753133288541,0.44500001,3759.3,3759.2,6.71614045]
[1753133289240,1e-08,3759.3,3759.2,7.26614045]
[1753133289468,1e-08,3759.3,3759.2,8.26143691]
[1753133289615,1e-08,3759.3,3759.2,11.73373691]
[1753133290524,1e-08,3759.3,3759.2,11.26143691]
[1753133293256,1e-08,3759.3,3759.2,13.58443691]
[1753133293464,1.22760001,3759.3,3759.2,16.09414045]
[1753133293631,1.22760001,3759.3,3759.2,12.03914045]
[1753133293826,1.22760001,3759.3,3759.2,9.379]
[1753133294171,1.22760001,3759.3,3759.2,6.379]
[1753133294378,1.22760001,3759.3,3759.2,10.434]
[1753133295579,1.21510001,3759.3,3759.2,10.434]
[1753133296069,3.8751697,3759.3,3759.2,10.434]
[1753133297299,11.01090693,3759.3,3759.2,10.434]
[1753133297479,11.01090693,3759.3,3759.2,4.055]
[1753133297855,3.43024045,3759.2,3759.1,0.001]
[1753133298059,3.43024045,3759.2,3759.1,4.056]
[1753133298274,3.88194045,3759.2,3759.1,4.056]
[1753133301323,3.88194045,3759.2,3759.1,0.001]
[1753133301546,3.88194045,3759.2,3759.1,4.056]
[1753133301741,3.88194045,3759.2,3759.1,0.001]
[1753133302834,10.56647312,3758.5,3758.4,0.001]
[1753133303035,10.56647312,3758.5,3758.4,4.056]
[1753133303534,11.01817312,3758.5,3758.4,4.056]
[1753133314081,11.01817312,3758.5,3758.4,0.001]
[1753133323149,14.01817312,3758.5,3758.4,0.001]
[1753133326455,3.43073589,3758.5,3758.4,0.001]
[1753133326683,11.01817312,3758.5,3758.4,0.001]
[1753133338903,10.56647312,3758.5,3758.4,0.001]
[1753133339092,9.79637312,3758.5,3758.4,0.001]
[1753133340225,2.66063589,3758.5,3758.4,0.001]
[1753133349408,3.09503589,3758.5,3758.4,0.001]
[1753133349780,2.66063589,3758.5,3758.4,0.001]
[1753133353412,3.09503589,3758.5,3758.4,0.001]
[1753133353796,2.66063589,3758.5,3758.4,0.001]
[1753133358919,3.11283589,3758.5,3758.4,0.001]
[1753133360824,2.66063589,3758.5,3758.4,0.001]
[1753133361591,3.48513589,3758.5,3758.4,0.001]
[1753133361821,3.93733589,3758.5,3758.4,0.001]
[1753133363215,3.11283589,3758.5,3758.4,0.001]
[1753133368702,2.66063589,3758.5,3758.4,0.001]
[1753133369855,3.11283589,3758.5,3758.4,0.001]
[1753133373345,2.66063589,3758.5,3758.4,0.001]
[1753133376320,3.11283589,3758.5,3758.4,0.001]
[1753133381631,2.79350668,3758.4,3758.3,4.04017785]
[1753133385255,2.79350668,3758.4,3758.3,4.04017785]
[1753133389055,0.1328,3758.4,3758.3,4.04017785]
[1753133392057,0.1328,3758.4,3758.3,4.47437785]
[1753133392425,0.002,3759.1,3758.3,5.29062062]
[1753133392626,0.002,3759.1,3758.5,2.66057796]
[1753133393032,0.002,3759.1,3758.6,0.4342]
[1753133393232,0.002,3759.1,3758.7,4.047]
[1753133393533,0.002,3759.1,3758.7,4.4812]
[1753133393534,2.66222175,3759.1,3758.7,4.4812]
[1753133393725,2.66222175,3759.1,3758.8,0.4342]
[1753133393928,0.002,3759.1,3758.8,3.42152353]
[1753133394129,0.002,3759.1,3759.0,8.65343346]
[1753133394332,0.002,3759.1,3759.0,12.20343346]
[1753133394528,0.002,3759.1,3759.0,10.90258198]
[1753133394733,0.002,3759.1,3759.0,11.45258198]
[1753133394962,0.002,3759.1,3759.0,13.55702178]
[1753133395164,0.002,3759.1,3758.9,6.382]
[1753133395327,0.002,3759.1,3759.0,4.047]
[1753133396251,0.002,3759.1,3759.0,4.4812]
[1753133397570,0.002,3759.1,3759.0,7.14148198]
[1753133398964,0.002,3759.1,3759.0,7.90258198]
[1753133399476,0.002,3759.1,3759.0,9.59708082]
[1753133400271,0.002,3759.1,3759.0,12.59708082]
[1753133403041,0.002,3759.1,3759.0,13.14708082]
[1753133404290,1e-08,3759.1,3759.0,13.14708082]
[1753133404585,1e-08,3759.1,3759.0,13.27988082]
[1753133405655,1e-08,3759.1,3759.0,13.60028326]
[1753133406953,1e-08,3759.1,3759.0,13.21538326]
[1753133407459,1e-08,3759.1,3759.0,17.90538326]
[1753133416699,1e-08,3759.1,3759.0,29.80607826]
[1753133417880,1e-08,3759.1,3759.0,25.57879726]
[1753133423274,1e-08,3759.1,3759.0,21.91669726]
[1753133423482,1e-08,3759.1,3759.0,2.66028198]
[1753133423676,0.45030001,3759.1,3759.0,9.70328198]
[1753133423999,0.45030001,3759.1,3759.0,6.70328198]
[1753133424176,0.45030001,3759.1,3759.0,9.70328198]
[1753133424377,0.45030001,3759.1,3758.9,4.69]
[1753133424575,1.2097,3759.0,3758.9,4.69]
[1753133424776,1.2097,3759.0,3758.4,0.001]
[1753133424777,0.4503,3759.0,3758.4,0.001]
[1753133424977,1e-08,3759.1,3758.4,0.001]
[1753133424978,0.7594,3758.5,3758.4,0.001]
[1753133425175,1.2097,3758.5,3758.4,4.043]
[1753133426000,1.2097,3758.5,3758.4,4.044]
[1753133426582,3.87033589,3758.5,3758.4,0.001]
[1753133426817,3.87033589,3758.5,3758.4,4.044]
[1753133427022,3.87033589,3758.5,3758.4,0.001]
[1753133431694,4.00338861,3758.5,3758.4,0.001]
[1753133431887,3.87033589,3758.5,3758.4,0.001]
[1753133433710,6.87033589,3758.5,3758.4,0.001]
[1753133434406,6.87033589,3758.5,3758.4,1e-08]
[1753133435006,6.62010668,3758.4,3758.3,1e-08]
[1753133435207,7.07040668,3758.4,3758.3,1e-08]
[1753133436015,11.11340668,3758.4,3758.3,1e-08]
[1753133443131,7.07040668,3758.4,3758.3,1e-08]
[1753133443336,4.07040668,3758.4,3758.3,1e-08]
[1753133443542,8.11440668,3758.4,3758.3,1e-08]
[1753133443705,4.07040668,3758.4,3758.3,1e-08]
[1753133444635,3.62010668,3758.4,3758.3,1e-08]
[1753133444800,2.79350668,3758.4,3758.3,1e-08]
[1753133445409,3.24380668,3758.4,3758.3,1e-08]
[1753133448328,2.79350668,3758.4,3758.3,1e-08]
[1753133449431,3.22370668,3758.4,3758.3,1e-08]
[1753133450970,2.79350668,3758.4,3758.3,1e-08]
[1753133451746,3.22370668,3758.4,3758.3,1e-08]
[1753133452863,2.79350668,3758.4,3758.3,1e-08]
[1753133454039,3.22370668,3758.4,3758.3,1e-08]
[1753133454450,2.79350668,3758.4,3758.3,1e-08]
[1753133456069,3.22370668,3758.4,3758.3,1e-08]
[1753133458864,3.99970668,3758.4,3758.3,1e-08]
[1753133459774,11.13005215,3758.4,3758.3,1e-08]
[1753133460242,15.17205215,3758.4,3758.3,1e-08]
[1753133461181,13.96585215,3758.4,3758.3,1e-08]
[1753133462185,9.92385215,3758.4,3758.3,1e-08]
[1753133463688,9.92585215,3758.4,3758.3,1e-08]
[1753133464067,13.96785215,3758.4,3758.3,1e-08]
[1753133464683,14.39805215,3758.4,3758.3,1e-08]
[1753133468271,10.35605215,3758.4,3758.3,1e-08]
[1753133470160,14.39705215,3758.4,3758.3,1e-08]
[1753133482315,13.96685215,3758.4,3758.3,1e-08]
[1753133482486,9.92585215,3758.4,3758.3,1e-08]
[1753133482689,13.96585215,3758.4,3758.3,1e-08]
[1753133484123,9.92585215,3758.4,3758.3,1e-08]
[1753133484323,13.96585215,3758.4,3758.3,1e-08]
[1753133485187,0.1348,3758.4,3758.3,1e-08]
[1753133485598,0.1348,3758.4,3758.3,0.44830001]
[1753133489092,2.79550668,3758.4,3758.3,0.44830001]
[1753133489434,0.1348,3758.4,3758.3,0.44830001]
[1753133490322,2.79550668,3758.4,3758.3,0.44830001]
[1753133490931,0.1348,3758.4,3758.3,0.44830001]
[1753133497953,0.1348,3758.4,3758.3,1e-08]
[1753133498161,3.26990668,3758.4,3758.3,1e-08]
[1753133525794,7.30690668,3758.4,3758.3,1e-08]
[1753133528478,6.83250668,3758.4,3758.3,1e-08]
[1753133529698,2.79550668,3758.4,3758.3,1e-08]
[1753133530305,3.23590668,3758.4,3758.3,1e-08]
[1753133535416,7.04810668,3758.4,3758.3,1e-08]
[1753133535604,9.79133535,3758.0,3757.9,0.001]
[1753133536289,10.23173535,3758.0,3757.9,0.001]
[1753133537984,14.26773535,3758.0,3757.9,0.001]
[1753133539624,18.07993535,3758.0,3757.9,0.001]
[1753133540184,10.60353535,3758.0,3757.9,0.001]
[1753133540389,13.82733535,3758.0,3757.9,0.001]
[1753133540717,10.60353535,3758.0,3757.9,0.001]
[1753133540923,11.05683535,3758.0,3757.9,0.001]
[1753133542000,9.79133535,3758.0,3757.9,0.001]
[1753133543723,10.24463535,3758.0,3757.9,0.001]
[1753133549305,9.79133535,3758.0,3757.9,0.001]
[1753133550428,14.27963535,3758.0,3757.9,0.001]
[1753133551701,17.27963535,3758.0,3757.9,0.001]
[1753133554902,2.66120233,3757.7,3757.6,0.001]
[1753133555104,10.48380233,3757.7,3757.6,0.001]
[1753133555415,10.93710233,3757.7,3757.6,0.001]
[1753133557436,5.79407315,3757.6,3757.5,0.001]
[1753133557636,14.16531862,3757.6,3757.5,0.001]
[1753133561550,14.71531862,3757.6,3757.5,0.001]
[1753133561753,10.57950194,3757.2,3757.1,0.021]
[1753133561955,17.61450194,3757.2,3757.1,0.021]
[1753133562250,18.06780194,3757.2,3757.1,0.021]
[1753133565742,2.66176901,3756.9,3756.8,0.001]
[1753133565938,10.51046901,3756.9,3756.8,0.001]
[1753133566258,10.96376901,3756.9,3756.8,0.001]
[1753133566947,11.51376901,3756.9,3756.8,0.001]
[1753133567153,11.51376901,3756.9,3756.8,1e-08]
[1753133570142,11.51376901,3756.9,3756.4,0.001]
[1753133570143,3.21205244,3756.5,3756.4,0.001]
[1753133570460,4.02696505,3756.2,3755.8,0.001]
[1753133570669,4.02696505,3756.2,3756.1,1e-08]
[1753133570670,8.06096505,3756.2,3756.1,1e-08]
[1753133570872,8.48996505,3756.2,3756.1,1e-08]
[1753133573178,11.48996505,3756.2,3756.1,1e-08]
[1753133573344,2.6624777,3755.9,3755.8,0.001]
[1753133573537,1.3647,3755.6,3755.5,0.001]
[1753133573843,11.06239038,3755.6,3755.5,0.001]
[1753133574061,11.49139038,3755.6,3755.5,0.001]
[1753133575442,11.62386129,3755.6,3755.5,0.001]
[1753133575975,11.82003196,3755.6,3755.5,0.001]
[1753133579763,11.82003196,3755.6,3755.5,1e-08]
[1753133580553,11.82003196,3755.6,3755.0,0.001]
[1753133580554,4.017474,3755.2,3755.0,0.001]
[1753133580773,6.21304492,3755.1,3755.0,0.001]
[1753133580972,6.64204492,3755.1,3755.0,0.001]
[1753133581178,6.64204492,3755.1,3754.8,1e-08]
[1753133581179,5.66318676,3754.9,3754.8,1e-08]
[1753133581358,9.69818676,3754.9,3754.8,1e-08]
[1753133582168,11.05268676,3754.9,3754.8,1e-08]
[1753133582366,11.48168676,3754.9,3754.8,1e-08]
[1753133582783,11.05268676,3754.9,3754.8,1e-08]
[1753133583572,7.44668676,3754.9,3754.8,1e-08]
[1753133583767,11.48168676,3754.9,3754.8,1e-08]
[1753133584090,11.05268676,3754.9,3754.8,1e-08]
[1753133584465,11.48168676,3754.9,3754.8,1e-08]
[1753133586374,5.66318676,3754.9,3754.8,1e-08]
[1753133586574,16.82853223,3754.9,3754.8,1e-08]
[1753133586773,17.37853223,3754.9,3754.8,1e-08]
[1753133587500,17.80753223,3754.9,3754.8,1e-08]
[1753133588705,18.61203223,3754.9,3754.8,1e-08]
[1753133588881,2.66339956,3754.6,3754.5,1e-08]
[1753133589098,2.66368334,3754.2,3754.0,0.001]
[1753133589422,9.79402881,3754.2,3754.0,0.001]
[1753133589770,2.66368334,3754.2,3754.1,1.2279]
[1753133591616,2.66368334,3754.2,3754.1,1.2289]
[1753133592105,6.69868334,3754.2,3754.1,0.021]
[1753133595914,7.12768334,3754.2,3754.1,0.021]
[1753133601142,10.12768334,3754.2,3754.1,1e-08]
[1753133601355,2.66439305,3753.2,3753.1,0.02]
[1753133601516,9.79473852,3753.2,3753.1,0.02]
[1753133604827,10.25473852,3753.2,3753.1,0.02]
[1753133605440,14.01963852,3753.2,3753.1,0.02]
[1753133608139,14.56963852,3753.2,3753.1,0.02]
[1753133610882,7.13034547,3753.7,3753.1,0.02]
[1753133611190,2.66439305,3753.2,3753.1,0.453]
[1753133611386,6.70039305,3753.2,3753.1,0.453]
[1753133613135,2.66409167,3753.7,3753.2,0.8118]
[1753133613364,2.66425107,3753.4,3753.3,1.2448]
[1753133613757,2.6641996,3753.5,3753.3,1.2448]
[1753133614077,2.6641996,3753.5,3753.4,0.433]
[1753133616276,0.19893241,3754.0,3753.5,0.8118]
[1753133616277,2.66382566,3754.0,3753.5,0.8118]
[1753133616593,2.66382566,3754.0,3753.6,0.433]
[1753133617883,9.79412403,3754.1,3753.6,0.433]
[1753133618090,2.6638436,3754.0,3753.6,0.433]
[1753133618290,2.66389468,3754.0,3753.6,0.433]
[1753133618574,2.66390678,3753.9,3753.6,0.433]
[1753133618790,2.663845,3754.0,3753.7,0.433]
[1753133618945,2.66370518,3754.2,3753.8,0.8118]
[1753133619251,0.002,3754.4,3754.0,0.8118]
[1753133619665,0.002,3754.4,3754.2,0.8118]
[1753133620072,0.002,3754.4,3754.3,0.433]
[1753133620277,2.66554144,3754.4,3754.3,0.433]
[1753133621245,0.002,3754.4,3754.3,0.433]
[1753133622558,2.66554144,3754.4,3754.3,0.433]
[1753133623089,2.66361239,3754.3,3753.9,0.8118]
[1753133623292,0.1328,3753.8,3753.7,0.8118]
[1753133623576,2.79676717,3753.8,3753.7,1.2448]
[1753133623949,0.1328,3753.8,3753.7,1.2448]
[1753133624281,0.002,3754.4,3753.8,0.8118]
[1753133624445,0.002,3754.4,3754.0,0.8118]
[1753133624649,0.002,3754.4,3753.9,4.035]
[1753133624650,0.002,3754.4,3754.3,3.47541239]
[1753133625047,0.002,3754.4,3754.3,3.90841239]
[1753133632608,0.002,3754.4,3754.3,7.94241239]
[1753133634755,0.002,3754.4,3754.3,10.94241239]
[1753133640823,0.002,3754.4,3753.6,7.68034547]
[1753133640824,0.002,3754.4,3753.8,0.4749]
[1753133641068,0.002,3754.4,3754.2,0.4749]
[1753133641187,0.002,3754.4,3754.3,8.00634851]
[1753133641386,0.002,3754.4,3754.3,7.97971239]
[1753133641929,0.002,3754.4,3754.3,5.3161]
[1753133642083,0.002,3754.4,3754.3,5.34273612]
[1753133644721,0.002,3754.4,3754.3,8.00634851]
[1753133644927,0.002,3754.4,3754.3,5.3161]
[1753133645091,0.002,3754.4,3754.3,5.34273612]
[1753133647167,0.002,3754.4,3754.3,9.07336857]
[1753133647331,0.002,3754.4,3754.3,9.04673245]
[1753133650968,0.002,3754.4,3754.3,7.53883245]
[1753133651258,0.002,3754.4,3754.3,10.97871239]
[1753133652826,0.002,3754.4,3754.3,10.50381239]
[1753133653148,0.002,3754.4,3754.3,10.97871239]
[1753133654422,0.002,3754.4,3754.3,11.52871239]
[1753133654736,0.002,3754.4,3754.3,11.66151239]
[1753133655060,0.002,3754.4,3754.3,13.36040258]
[1753133658058,0.002,3754.4,3754.3,17.10887258]
[1753133658462,0.002,3754.4,3754.3,16.87867458]
[1753133659858,0.002,3754.4,3754.3,13.36040258]
[1753133663861,0.002,3754.4,3754.3,17.29358858]
[1753133664165,0.002,3754.4,3754.3,13.36040258]
[1753133669483,0.002,3754.4,3754.3,18.73388758]
[1753133669979,0.002,3754.4,3754.3,17.77955258]
[1753133670186,0.002,3754.4,3754.3,16.54801158]
[1753133673487,1e-08,3754.4,3754.3,39.13859969]
[1753133673653,1e-08,3754.4,3754.3,37.25482969]
[1753133673985,1e-08,3754.4,3754.3,41.94482969]
[1753133674353,1e-08,3754.4,3754.3,49.07517516]
[1753133678883,1e-08,3755.2,3755.0,1.308]
[1753133679084,1e-08,3755.2,3755.1,39.49288146]
[1753133679382,1e-08,3755.2,3755.1,46.11605102]
[1753133679583,1e-08,3755.2,3755.1,46.58345102]
[1753133679754,1e-08,3755.2,3755.1,41.89345102]
[1753133680579,1e-08,3755.2,3755.1,36.62252502]
[1753133681749,1e-08,3755.2,3755.1,36.82331738]
[1753133684257,1e-08,3755.2,3755.1,25.71749538]
[1753133684558,1e-08,3755.2,3755.1,44.68676838]
[1753133684961,1e-08,3755.2,3755.1,49.37676838]
[1753133685165,1e-08,3755.2,3755.1,35.06504938]
[1753133685676,1e-08,3755.2,3755.1,34.34659038]
[1753133697094,1e-08,3755.2,3755.1,45.17205338]
[1753133697699,1e-08,3755.2,3755.1,43.45683138]
[1753133698299,1e-08,3755.2,3755.1,42.65753738]
[1753133698664,1e-08,3755.2,3755.1,30.27079191]
[1753133698864,0.45170001,3755.2,3755.1,18.49974991]
[1753133699196,0.45170001,3755.2,3755.1,21.49974991]
[1753133699361,0.45170001,3755.2,3755.1,21.50074991]
[1753133699562,0.45170001,3755.2,3755.1,22.05074991]
[1753133700362,1.21530001,3755.2,3755.1,17.90284492]
[1753133700661,1.21530001,3755.2,3755.1,20.90284492]
[1753133701062,1.21530001,3755.2,3755.1,21.45284492]
[1753133702986,1e-08,3755.2,3755.1,27.66576992]
[1753133703202,1e-08,3755.2,3755.1,31.17444385]
[1753133707692,1e-08,3755.2,3755.1,39.49978085]
[1753133708034,1e-08,3755.2,3755.1,38.77385285]